[Event "FIDE Women GP Monaco 2019"]
[Site "Monaco"]
[Date "2019.12.04"]
[Round "2.6"]
[White "Harika, Dronavalli"]
[Black "Paehtz, Elisabeth"]
[Result "1-0"]
[ECO "D15"]
[WhiteElo "2518"]
[BlackElo "2475"]
[Annotator "ChessBase"]
[PlyCount "101"]
[EventDate "2019.12.03"]
[EventType "tourn"]
[EventCountry "MNC"]
[SourceTitle "playchess.com"]
[Source "ChessBase"]
[SourceQuality "1"]
[TimeControl "40/5400+30:1800+30"]

1. d4 {[%emt 0:00:00]} d5 {[%emt 0:00:00]} 2. c4 {[%emt 0:00:00]} c6 {[%emt 0:00:00]} 3. Nc3 {[%emt 0:00:00]} Nf6 {[%emt 0:01:05]} 4. Nf3 {[%emt 0:00:27]} a6 {[%emt 0:01:39]} 5. Qc2 {[%emt 0:00:23]} Nbd7 {[%emt 0:04:08]} 6. cxd5 {[%emt 0:06:16]} cxd5 {[%emt 0:00:03]} 7. Bf4 {[%emt 0:00:20]} e6 {[%emt 0:00:22]} 8. e3 {[%emt 0:00:51]} b5 {[%emt 0:07:14]} 9. Bd3 {[%emt 0:05:49]} Bb7 {[%emt 0:00:05]} 10. O-O {[%emt 0:01:20]} Be7 {[%emt 0:02:52]} 11. Rfc1 {[%emt 0:08:57]} Rc8 {[%emt 0:16:00]} 12. Qb3 {[%emt 0:04:56]} O-O {[%emt 0:06:53]} 13. a4 {[%emt 0:07:18]} b4 {[%emt 0:08:35]} 14. Ne2 {[%emt 0:04:21]} Qa5 {[%emt 0:09:10]} 15. Qd1 {[%emt 0:06:06]} Ne4 16. Rxc8 {[%emt 0:00:05]} Rxc8 {[%emt 0:00:35]} 17. Nc1 {[%emt 0:10:15]} Qd8 {[%emt 0:08:51]} 18. Nb3 {[%emt 0:13:50]} g5 {[%emt 0:01:30]} 19. Be5 {[%emt 0:00:04]} f6 {[%emt 0:10:52]} 20. Bg3 {[%emt 0:00:17]} h5 {[%emt 0:00:37]} 21. h3 {[%emt 0:00:05]} Nxg3 {[%emt 0:05:40]} 22. fxg3 {[%emt 0:14:15]} Qc7 {[%emt 0:02:18]} 23. Nh2 {[%emt 0:00:07]} Qxg3 24. Nf1 {[%emt 0:00:53]} Qd6 {[%emt 0:05:22]} 25. Qxh5 Nf8 {[%emt 0:00:33]} 26. h4 {[%emt 0:06:09]} Bc6 {[%emt 0:00:46]} 27. hxg5 {[%emt 0:03:12]} Be8 28. Qh2 Qxh2+ {[%emt 0:03:26]} 29. Nxh2 {[%emt 0:00:35]} fxg5 30. a5 Ra8 {[%emt 0:01:22]} 31. Ng4 {[%emt 0:03:15]} Bg6 {[%emt 0:00:06]} 32. Bxg6 {[%emt 0:00:27]} Nxg6 {[%emt 0:00:04]} 33. Rc1 {[%emt 0:00:02]} Ra7 {[%emt 0:00:27]} 34. Rc6 {[%emt 0:01:04]} Kf7 {[%emt 0:03:15]} 35. Kf2 {[%emt 0:00:42]} Bf8 {[%emt 0:00:30]} 36. Ke2 {[%emt 0:00:52]} Be7 {[%emt 0:00:17]} 37. Kd3 {[%emt 0:01:21]} Bf8 {[%emt 0:00:18]} 38. Rb6 {[%emt 0:01:34]} Be7 {[%emt 0:01:22]} 39. Nc5 Bxc5 40. dxc5 {[%emt 0:00:34]} Ke7 {[%emt 0:01:01]} 41. Kd4 {[%emt 0:31:36]} Nh4 {[%emt 0:32:14]} 42. Ne5 {[%emt 0:00:00]} Nf5+ {[%emt 0:00:00]} 43. Kd3 {[%emt 0:00:00]} Rc7 {[%emt 0:00:00]} 44. Nc6+ {[%emt 0:00:00]} Kf6 {[%emt 0:00:00]} 45. Rxa6 {[%emt 0:00:00]} Ng3 {[%emt 0:00:00]} 46. Nd4 {[%emt 0:00:00]} Rxc5 {[%emt 0:00:00]} 47. Rxe6+ {[%emt 0:00:00]} Kf7 {[%emt 0:00:00]} 48. a6 {[%emt 0:00:00]} Ra5 {[%emt 0:00:00]} 49. Nc6 {[%emt 0:00:00]} Ra1 {[%emt 0:00:00]} 50. Re7+ {[%emt 0:00:00]} Kf6 {[%emt 0:00:00]} 51. a7 {[%emt 0:00:00]} 1-0

[Event "FIDE Women GP Monaco 2019"]
[Site "Monaco"]
[Date "2019.12.05"]
[Round "3.1"]
[White "Paehtz, Elisabeth"]
[Black "Dzagnidze, Nana"]
[Result "0-1"]
[ECO "B42"]
[WhiteElo "2475"]
[BlackElo "2520"]
[Annotator "ChessBase"]
[PlyCount "150"]
[EventDate "2019.12.03"]
[EventType "tourn"]
[EventCountry "MNC"]
[SourceTitle "playchess.com"]
[Source "ChessBase"]
[SourceQuality "1"]
[TimeControl "40/5400+30:1800+30"]

1. e4 {[%emt 0:00:00]} c5 {[%emt 0:00:00]} 2. Nf3 {[%emt 0:00:00]} e6 {[%emt 0:00:00]} 3. d4 {[%emt 0:00:37]} cxd4 {[%emt 0:00:00]} 4. Nxd4 {[%emt 0:00:03]} a6 {[%emt 0:00:30]} 5. Bd3 {[%emt 0:00:05]} Bc5 {[%emt 0:00:28]} 6. Nb3 {[%emt 0:00:06]} Ba7 {[%emt 0:00:05]} 7. Nc3 {[%emt 0:00:24]} Ne7 {[%emt 0:02:43]} 8. Qe2 {[%emt 0:04:34]} Nbc6 {[%emt 0:01:00]} 9. Be3 {[%emt 0:00:56]} d6 {[%emt 0:06:47]} 10. Bxa7 {[%emt 0:01:00]} Rxa7 {[%emt 0:00:05]} 11. f4 {[%emt 0:04:36]} b5 {[%emt 0:02:10]} 12. O-O {[%emt 0:01:04]} O-O {[%emt 0:13:12]} 13. Rad1 {[%emt 0:03:12]} Ng6 {[%emt 0:06:23]} 14. Qe3 {[%emt 0:05:39]} Rd7 {[%emt 0:03:58]} 15. a4 {[%emt 0:06:10]} b4 {[%emt 0:06:55]} 16. Ne2 {[%emt 0:00:20]} Re8 {[%emt 0:03:25]} 17. Kh1 {[%emt 0:01:38]} Bb7 {[%emt 0:04:21]} 18. Qf2 {[%emt 0:05:05]} Na5 {[%emt 0:07:23]} 19. Nd2 {[%emt 0:03:28]} f6 {[%emt 0:07:29]} 20. Qd4 {[%emt 0:18:05]} Nc6 {[%emt 0:00:53]} 21. Qf2 {[%emt 0:00:20]} d5 {[%emt 0:07:34]} 22. exd5 {[%emt 0:05:35]} Rxd5 {[%emt 0:00:30]} 23. Nc4 {[%emt 0:00:30]} Na5 {[%emt 0:09:13]} 24. Ne3 {[%emt 0:06:43]} Rd6 {[%emt 0:00:21]} 25. Bxg6 {[%emt 0:11:14]} hxg6 {[%emt 0:00:06]} 26. Qg3 {[%emt 0:00:02]} Nc4 {[%emt 0:05:45]} 27. Rxd6 {[%emt 0:02:33]} Nxd6 {[%emt 0:00:02]} 28. Qxg6 {[%emt 0:00:27]} Be4 {[%emt 0:01:11]} 29. Qh5 {[%emt 0:02:24]} Qb6 {[%emt 0:00:38]} 30. Qh3 {[%emt 0:04:18]} Qc5 {[%emt 0:01:09]} 31. Rd1 {[%emt 0:02:18]} Bxc2 {[%emt 0:05:08]} 32. Rc1 {[%emt 0:00:57]} b3 {[%emt 0:05:05]} 33. Nxc2 {[%emt 0:00:10]} bxc2 {[%emt 0:00:10]} 34. Nc3 {[%emt 0:06:22]} Qf2 {[%emt 0:00:46]} 35. Qd3 {[%emt 0:01:27]} Qxf4 {[%emt 0:01:14]} 36. Rxc2 {[%emt 0:00:23]} Nf5 {[%emt 0:00:38]} 37. Rd2 {[%emt 0:03:18]} a5 {[%emt 0:00:26]} 38. Rd1 {[%emt 0:00:30]} Kf7 {[%emt 0:00:34]} 39. Rf1 {[%emt 0:01:54]} Rd8 {[%emt 0:00:39]} 40. Rxf4 {[%emt 0:01:01]} Rxd3 {[%emt 0:00:03]} 41. Rc4 {[%emt 0:04:59]} Rd2 {[%emt 0:02:40]} 42. Rc7+ {[%emt 0:06:15]} Kg6 {[%emt 0:02:20]} 43. Rb7 {[%emt 0:02:47]} Nh4 {[%emt 0:09:31]} 44. Rb5 {[%emt 0:00:04]} Rxg2 {[%emt 0:01:08]} 45. Rxa5 {[%emt 0:00:04]} Rxb2 {[%emt 0:00:22]} 46. Kg1 {[%emt 0:00:06]} f5 {[%emt 0:01:13]} 47. Rc5 {[%emt 0:02:12]} e5 {[%emt 0:03:17]} 48. a5 {[%emt 0:00:18]} e4 {[%emt 0:01:10]} 49. Kf1 {[%emt 0:01:22]} Nf3 {[%emt 0:03:10]} 50. Ne2 {[%emt 0:02:01]} Nxh2+ {[%emt 0:00:34]} 51. Ke1 {[%emt 0:00:10]} Nf3+ {[%emt 0:00:13]} 52. Kf1 {[%emt 0:00:06]} Kg5 {[%emt 0:01:33]} 53. a6 {[%emt 0:00:17]} Ra2 {[%emt 0:00:28]} 54. Nc3 {[%emt 0:00:12]} Rxa6 {[%emt 0:01:13]} 55. Nxe4+ {[%emt 0:00:03]} Kf4 {[%emt 0:00:13]} 56. Nc3 {[%emt 0:00:06]} Nd2+ {[%emt 0:02:08]} 57. Ke2 {[%emt 0:00:10]} Ne4 {[%emt 0:00:12]} 58. Rc4 {[%emt 0:00:15]} g5 {[%emt 0:01:35]} 59. Nd5+ {[%emt 0:00:23]} Ke5 {[%emt 0:00:08]} 60. Nb4 {[%emt 0:00:06]} Rh6 {[%emt 0:00:50]} 61. Nd3+ {[%emt 0:00:45]} Kd5 {[%emt 0:00:05]} 62. Rc8 {[%emt 0:00:13]} Kd4 {[%emt 0:03:00]} 63. Rd8+ {[%emt 0:00:14]} Nd6 {[%emt 0:00:05]} 64. Nf2 {[%emt 0:00:17]} Ke5 {[%emt 0:01:13]} 65. Nd3+ {[%emt 0:00:06]} Ke4 {[%emt 0:00:11]} 66. Nf2+ {[%emt 0:00:10]} Kf4 {[%emt 0:00:05]} 67. Nd3+ {[%emt 0:00:28]} Kg3 {[%emt 0:00:04]} 68. Rg8 {[%emt 0:00:25]} Re6+ {[%emt 0:01:01]} 69. Kf1 {[%emt 0:00:05]} Ne4 {[%emt 0:00:40]} 70. Ra8 {[%emt 0:00:25]} f4 {[%emt 0:01:06]} 71. Ra3 {[%emt 0:00:07]} f3 {[%emt 0:00:58]} 72. Kg1 {[%emt 0:00:13]} g4 {[%emt 0:00:28]} 73. Rb3 {[%emt 0:00:12]} Ra6 {[%emt 0:00:38]} 74. Rb1 {[%emt 0:00:16]} Ra2 {[%emt 0:00:45]} 75. Re1 {[%emt 0:00:12]} f2+ {[%emt 0:00:55]} 0-1

[Event "FIDE Women GP Monaco 2019"]
[Site "Monaco"]
[Date "2019.12.05"]
[Round "3.2"]
[White "Cramling, Pia"]
[Black "Harika, Dronavalli"]
[Result "1/2-1/2"]
[ECO "D31"]
[WhiteElo "2461"]
[BlackElo "2518"]
[Annotator "ChessBase"]
[PlyCount "63"]
[EventDate "2019.12.03"]
[EventType "tourn"]
[EventCountry "MNC"]
[SourceTitle "playchess.com"]
[Source "ChessBase"]
[SourceQuality "1"]
[TimeControl "40/5400+30:1800+30"]

1. c4 {[%emt 0:00:00]} e6 {[%emt 0:00:00]} 2. Nc3 {[%emt 0:00:00]} d5 {[%emt 0:00:00]} 3. d4 {[%emt 0:00:01]} c6 {[%emt 0:00:00]} 4. e4 {[%emt 0:00:20]} dxe4 {[%emt 0:00:00]} 5. Nxe4 {[%emt 0:00:05]} Bb4+ {[%emt 0:00:06]} 6. Nc3 {[%emt 0:00:14]} e5 {[%emt 0:00:14]} 7. Be3 {[%emt 0:11:15]} exd4 {[%emt 0:02:11]} 8. Qxd4 {[%emt 0:00:55]} Qxd4 {[%emt 0:00:57]} 9. Bxd4 {[%emt 0:00:42]} Nf6 {[%emt 0:00:32]} 10. a3 {[%emt 0:09:34]} Be7 {[%emt 0:02:09]} 11. Nf3 {[%emt 0:00:11]} Nbd7 {[%emt 0:04:06]} 12. Bd3 {[%emt 0:05:24]} Nc5 {[%emt 0:22:01]} 13. Bc2 {[%emt 0:00:31]} Bg4 {[%emt 0:02:10]} 14. Ne5 {[%emt 0:20:19]} Rd8 {[%emt 0:02:41]} 15. Be3 {[%emt 0:00:32]} Be6 {[%emt 0:01:13]} 16. O-O {[%emt 0:01:04]} O-O {[%emt 0:02:46]} 17. Rfd1 {[%emt 0:06:35]} a6 {[%emt 0:09:03]} 18. h3 {[%emt 0:05:25]} Ncd7 {[%emt 0:04:16]} 19. Nxd7 {[%emt 0:00:23]} Nxd7 {[%emt 0:04:02]} 20. b3 {[%emt 0:01:22]} b5 {[%emt 0:02:48]} 21. cxb5 {[%emt 0:08:29]} cxb5 {[%emt 0:04:46]} 22. Nd5 {[%emt 0:06:27]} Bxd5 {[%emt 0:05:12]} 23. Rxd5 {[%emt 0:00:06]} Nf6 {[%emt 0:00:02]} 24. Rxd8 {[%emt 0:00:19]} Rxd8 {[%emt 0:00:05]} 25. a4 {[%emt 0:00:27]} Nd5 {[%emt 0:00:12]} 26. Rd1 {[%emt 0:01:56]} Nxe3 {[%emt 0:00:15]} 27. Rxd8+ {[%emt 0:00:05]} Bxd8 {[%emt 0:00:04]} 28. fxe3 {[%emt 0:00:05]} bxa4 {[%emt 0:00:04]} 29. bxa4 {[%emt 0:00:05]} a5 {[%emt 0:00:04]} 30. Kf2 {[%emt 0:00:09]} h6 {[%emt 0:00:18]} 31. Kf3 {[%emt 0:00:11]} Kf8 {[%emt 0:00:05]} 32. Ke4 1/2-1/2

[Event "FIDE Women GP Monaco 2019"]
[Site "Monaco"]
[Date "2019.12.05"]
[Round "3.3"]
[White "Goryachkina, Aleksandra"]
[Black "Zhao, Xue"]
[Result "1-0"]
[ECO "D38"]
[WhiteElo "2572"]
[BlackElo "2485"]
[Annotator "ChessBase"]
[PlyCount "121"]
[EventDate "2019.12.03"]
[EventType "tourn"]
[EventCountry "MNC"]
[SourceTitle "playchess.com"]
[Source "ChessBase"]
[SourceQuality "1"]
[TimeControl "40/5400+30:1800+30"]

1. Nf3 d5 {[%emt 0:00:14]} 2. d4 {[%emt 0:00:00]} Nf6 {[%emt 0:04:24]} 3. c4 {[%emt 0:00:08]} e6 {[%emt 0:00:05]} 4. Nc3 Bb4 {[%emt 0:00:46]} 5. Bg5 {[%emt 0:00:35]} h6 {[%emt 0:00:41]} 6. Bxf6 {[%emt 0:00:16]} Qxf6 {[%emt 0:00:06]} 7. e3 {[%emt 0:00:23]} c6 {[%emt 0:03:46]} 8. Rc1 {[%emt 0:02:01]} Nd7 {[%emt 0:11:40]} 9. a3 {[%emt 0:02:23]} Be7 {[%emt 0:07:42]} 10. Bd3 {[%emt 0:03:38]} O-O {[%emt 0:02:24]} 11. O-O {[%emt 0:07:12]} Rd8 {[%emt 0:05:31]} 12. Qe2 {[%emt 0:00:54]} Bf8 {[%emt 0:12:21]} 13. Rfd1 {[%emt 0:02:29]} b6 {[%emt 0:11:23]} 14. cxd5 {[%emt 0:13:55]} exd5 {[%emt 0:01:51]} 15. e4 Bb7 16. exd5 {[%emt 0:10:13]} cxd5 {[%emt 0:07:49]} 17. Ba6 {[%emt 0:01:48]} Bc6 {[%emt 0:07:37]} 18. Nb5 {[%emt 0:09:22]} Re8 {[%emt 0:07:00]} 19. Qc2 {[%emt 0:02:50]} Bxb5 {[%emt 0:06:55]} 20. Bxb5 {[%emt 0:00:11]} Re7 {[%emt 0:00:45]} 21. Qc6 {[%emt 0:05:15]} Qxc6 {[%emt 0:00:05]} 22. Bxc6 {[%emt 0:00:11]} Rd8 {[%emt 0:00:11]} 23. Bxd5 {[%emt 0:03:35]} Re2 {[%emt 0:03:03]} 24. Rb1 {[%emt 0:01:40]} Rc8 {[%emt 0:02:16]} 25. Bb3 {[%emt 0:03:33]} g5 {[%emt 0:01:33]} 26. Kf1 {[%emt 0:01:53]} Re4 {[%emt 0:00:16]} 27. h3 {[%emt 0:01:17]} Bg7 {[%emt 0:02:09]} 28. Rbc1 {[%emt 0:04:39]} Rd8 {[%emt 0:00:21]} 29. Rc7 {[%emt 0:01:48]} a5 {[%emt 0:01:00]} 30. Rb7 Kf8 {[%emt 0:00:25]} 31. Ba4 {[%emt 0:03:56]} Ke7 32. Rc1 {[%emt 0:05:25]} Re6 {[%emt 0:01:01]} 33. Rcc7 {[%emt 0:01:07]} Rd6 {[%emt 0:00:05]} 34. Ne5 {[%emt 0:01:33]} Bxe5 {[%emt 0:00:06]} 35. dxe5 {[%emt 0:00:05]} Rd4 {[%emt 0:00:24]} 36. Bxd7 {[%emt 0:05:33]} R8xd7 {[%emt 0:00:04]} 37. Rxd7+ {[%emt 0:00:12]} Rxd7 {[%emt 0:00:06]} 38. Rxb6 {[%emt 0:00:05]} Rd2 {[%emt 0:00:03]} 39. g4 {[%emt 0:04:04]} Rd5 {[%emt 0:01:29]} 40. Rxh6 {[%emt 0:01:10]} Rxe5 {[%emt 0:00:22]} 41. Rb6 {[%emt 0:30:21]} f6 {[%emt 0:30:54]} 42. a4 {[%emt 0:00:29]} Rc5 {[%emt 0:00:29]} 43. Ke2 {[%emt 0:01:18]} Rc4 {[%emt 0:00:00]} 44. b3 {[%emt 0:00:00]} Rc3 {[%emt 0:00:00]} 45. f3 {[%emt 0:00:00]} Kf7 {[%emt 0:00:00]} 46. Kf2 {[%emt 0:00:00]} Rd3 {[%emt 0:00:00]} 47. Kg3 {[%emt 0:00:00]} Rc3 {[%emt 0:00:00]} 48. Rb5 {[%emt 0:00:00]} Kg6 {[%emt 0:00:00]} 49. Kf2 {[%emt 0:00:00]} Kf7 {[%emt 0:00:00]} 50. Rxa5 {[%emt 0:00:00]} Rxb3 {[%emt 0:00:00]} 51. Rf5 {[%emt 0:00:00]} Ra3 {[%emt 0:00:00]} 52. a5 {[%emt 0:00:00]} Ke6 {[%emt 0:00:00]} 53. Ke2 {[%emt 0:00:00]} Ra1 {[%emt 0:00:00]} 54. Kd3 {[%emt 0:00:00]} Rh1 {[%emt 0:00:00]} 55. Kc4 {[%emt 0:00:00]} Rxh3 {[%emt 0:00:00]} 56. a6 {[%emt 0:00:00]} Rh1 {[%emt 0:00:00]} 57. Ra5 {[%emt 0:00:00]} Rh8 {[%emt 0:00:00]} 58. a7 {[%emt 0:00:00]} Ra8 {[%emt 0:00:00]} 59. Kc5 {[%emt 0:00:00]} Ke5 {[%emt 0:00:00]} 60. Kb6+ {[%emt 0:00:00]} Kf4 {[%emt 0:00:00]} 61. Rf5+ {[%emt 0:00:00]} 1-0

[Event "FIDE Women GP Monaco 2019"]
[Site "Monaco"]
[Date "2019.12.05"]
[Round "3.4"]
[White "Gunina, Valentina"]
[Black "Kosteniuk, Alexandra"]
[Result "1-0"]
[ECO "E17"]
[WhiteElo "2492"]
[BlackElo "2483"]
[Annotator "ChessBase"]
[PlyCount "79"]
[EventDate "2019.12.03"]
[EventType "tourn"]
[EventCountry "MNC"]
[SourceTitle "playchess.com"]
[Source "ChessBase"]
[SourceQuality "1"]
[TimeControl "40/5400+30:1800+30"]

1. d4 {[%emt 0:00:00]} Nf6 {[%emt 0:00:00]} 2. c4 {[%emt 0:00:00]} e6 {[%emt 0:00:00]} 3. Nf3 {[%emt 0:00:00]} b6 {[%emt 0:00:00]} 4. g3 {[%emt 0:00:39]} Bb7 {[%emt 0:00:00]} 5. Bg2 {[%emt 0:00:18]} Be7 {[%emt 0:00:00]} 6. Nc3 {[%emt 0:00:23]} O-O {[%emt 0:00:13]} 7. Bd2 {[%emt 0:00:08]} Qc8 {[%emt 0:06:50]} 8. O-O {[%emt 0:16:14]} Na6 {[%emt 0:08:01]} 9. Bg5 {[%emt 0:14:29]} d5 {[%emt 0:05:41]} 10. cxd5 {[%emt 0:13:16]} exd5 {[%emt 0:00:07]} 11. Rc1 {[%emt 0:00:03]} Rd8 {[%emt 0:06:27]} 12. Ne5 {[%emt 0:04:38]} c5 {[%emt 0:08:26]} 13. f4 {[%emt 0:02:34]} Nc7 {[%emt 0:09:11]} 14. e3 {[%emt 0:06:58]} Nce8 {[%emt 0:02:19]} 15. g4 {[%emt 0:08:03]} Ba6 {[%emt 0:05:36]} 16. Rf3 {[%emt 0:03:29]} Qb7 {[%emt 0:23:18]} 17. Rh3 {[%emt 0:01:15]} cxd4 {[%emt 0:03:00]} 18. exd4 {[%emt 0:00:51]} Rac8 {[%emt 0:00:22]} 19. Rc2 {[%emt 0:07:05]} Nc7 {[%emt 0:04:56]} 20. f5 {[%emt 0:06:18]} Nb5 {[%emt 0:01:44]} 21. Be3 {[%emt 0:00:18]} Nxc3 {[%emt 0:00:57]} 22. bxc3 {[%emt 0:00:06]} Ne4 23. Bxe4 {[%emt 0:01:12]} dxe4 {[%emt 0:05:48]} 24. g5 Bd6 25. Qh5 {[%emt 0:05:02]} Bxe5 {[%emt 0:00:52]} 26. dxe5 {[%emt 0:00:07]} Qd5 {[%emt 0:02:08]} 27. Kg2 {[%emt 0:08:10]} Qxe5 {[%emt 0:04:21]} 28. Qxh7+ {[%emt 0:00:13]} Kf8 {[%emt 0:00:01]} 29. f6 {[%emt 0:00:38]} gxf6 {[%emt 0:00:08]} 30. Rf2 {[%emt 0:01:03]} Rxc3 {[%emt 0:01:25]} 31. gxf6 {[%emt 0:01:06]} Ke8 {[%emt 0:00:04]} 32. Qg8+ {[%emt 0:00:24]} Kd7 {[%emt 0:00:01]} 33. Qxf7+ {[%emt 0:00:06]} Kc8 {[%emt 0:02:31]} 34. Bf4 {[%emt 0:00:14]} Qd4 {[%emt 0:01:50]} 35. Rxc3+ {[%emt 0:00:06]} Qxc3 {[%emt 0:00:03]} 36. Qe6+ {[%emt 0:00:05]} Rd7 {[%emt 0:00:34]} 37. f7 {[%emt 0:00:33]} Qg7+ {[%emt 0:00:41]} 38. Bg3 {[%emt 0:00:07]} Qf8 {[%emt 0:00:03]} 39. Rc2+ {[%emt 0:00:10]} Kd8 {[%emt 0:00:09]} 40. Qf6+ {[%emt 0:00:22]} 1-0

[Event "FIDE Women GP Monaco 2019"]
[Site "Monaco"]
[Date "2019.12.06"]
[Round "4.1"]
[White "Dzagnidze, Nana"]
[Black "Koneru, Humpy"]
[Result "1/2-1/2"]
[ECO "E15"]
[WhiteElo "2520"]
[BlackElo "2574"]
[Annotator "ChessBase"]
[PlyCount "89"]
[EventDate "2019.12.03"]
[EventType "tourn"]
[EventCountry "MNC"]
[SourceTitle "playchess.com"]
[Source "ChessBase"]
[SourceQuality "1"]
[TimeControl "40/5400+30:1800+30"]

1. d4 {[%emt 0:00:00]} Nf6 {[%emt 0:00:00]} 2. c4 {[%emt 0:00:00]} e6 {[%emt 0:00:00]} 3. Nf3 {[%emt 0:00:00]} b6 {[%emt 0:00:16]} 4. g3 {[%emt 0:00:35]} Bb4+ {[%emt 0:00:40]} 5. Bd2 {[%emt 0:00:21]} Bxd2+ {[%emt 0:00:35]} 6. Qxd2 {[%emt 0:00:35]} Ba6 {[%emt 0:00:19]} 7. b3 {[%emt 0:00:28]} c6 {[%emt 0:06:28]} 8. Nc3 {[%emt 0:00:52]} d5 {[%emt 0:00:51]} 9. e4 {[%emt 0:14:07]} dxe4 {[%emt 0:20:51]} 10. Ng5 {[%emt 0:01:56]} O-O {[%emt 0:03:44]} 11. Bg2 {[%emt 0:09:30]} Nbd7 {[%emt 0:01:28]} 12. Ngxe4 {[%emt 0:08:07]} Qc7 {[%emt 0:08:11]} 13. O-O {[%emt 0:08:30]} Rad8 {[%emt 0:15:08]} 14. Rfe1 {[%emt 0:14:39]} Rfe8 {[%emt 0:02:06]} 15. Rad1 {[%emt 0:10:05]} Bb7 {[%emt 0:04:00]} 16. Qf4 {[%emt 0:00:30]} Qxf4 {[%emt 0:00:30]} 17. gxf4 {[%emt 0:00:02]} Nxe4 {[%emt 0:02:59]} 18. Nxe4 {[%emt 0:03:54]} Nf6 {[%emt 0:03:25]} 19. Nxf6+ {[%emt 0:00:16]} gxf6 {[%emt 0:00:03]} 20. f5 {[%emt 0:00:12]} Kf8 21. f4 {[%emt 0:01:02]} Re7 {[%emt 0:17:13]} 22. Kf2 {[%emt 0:02:40]} Ke8 {[%emt 0:01:02]} 23. Bf3 {[%emt 0:07:22]} exf5 {[%emt 0:05:30]} 24. b4 {[%emt 0:04:19]} Rxe1 {[%emt 0:00:01]} 25. Rxe1+ {[%emt 0:00:30]} Kf8 {[%emt 0:00:30]} 26. Rd1 Ba6 {[%emt 0:02:03]} 27. c5 {[%emt 0:00:09]} Bb5 28. d5 {[%emt 0:01:27]} bxc5 {[%emt 0:01:18]} 29. bxc5 {[%emt 0:04:22]} cxd5 {[%emt 0:00:02]} 30. Rxd5 {[%emt 0:00:13]} Rc8 {[%emt 0:00:31]} 31. Rxf5 {[%emt 0:00:28]} Bd7 {[%emt 0:01:39]} 32. Rd5 {[%emt 0:03:31]} Be6 {[%emt 0:00:51]} 33. Rh5 {[%emt 0:00:03]} f5 {[%emt 0:00:13]} 34. c6 {[%emt 0:00:04]} Rb8 {[%emt 0:00:22]} 35. Rxh7 {[%emt 0:00:23]} Rb2+ {[%emt 0:00:08]} 36. Ke3 {[%emt 0:00:50]} Rxa2 {[%emt 0:00:54]} 37. Rh8+ {[%emt 0:01:50]} Ke7 {[%emt 0:00:57]} 38. Ra8 {[%emt 0:03:37]} Rxh2 {[%emt 0:01:31]} 39. Rxa7+ {[%emt 0:00:20]} Kd6 {[%emt 0:00:06]} 40. Ra3 {[%emt 0:00:45]} Rc2 {[%emt 0:01:38]} 41. Rd3+ {[%emt 0:30:50]} Ke7 {[%emt 0:07:31]} 42. Rd4 {[%emt 0:00:00]} Rc3+ {[%emt 0:02:36]} 43. Rd3 {[%emt 0:00:00]} Rc2 {[%emt 0:00:31]} 44. Rd4 {[%emt 0:00:00]} Rc3+ {[%emt 0:00:06]} 45. Rd3 {[%emt 0:00:00]} 1/2-1/2

[Event "FIDE Women GP Monaco 2019"]
[Site "Monaco"]
[Date "2019.12.06"]
[Round "4.2"]
[White "Lagno, Kateryna"]
[Black "Muzychuk, Anna"]
[Result "0-1"]
[ECO "C78"]
[WhiteElo "2547"]
[BlackElo "2537"]
[Annotator "ChessBase"]
[PlyCount "106"]
[EventDate "2019.12.03"]
[EventType "tourn"]
[EventCountry "MNC"]
[SourceTitle "playchess.com"]
[Source "ChessBase"]
[SourceQuality "1"]
[TimeControl "40/5400+30:1800+30"]

1. e4 {[%emt 0:00:00]} e5 {[%emt 0:00:07]} 2. Nf3 {[%emt 0:00:00]} Nc6 {[%emt 0:00:00]} 3. Bb5 {[%emt 0:00:00]} a6 {[%emt 0:00:00]} 4. Ba4 {[%emt 0:00:01]} Nf6 {[%emt 0:00:00]} 5. O-O {[%emt 0:00:08]} b5 {[%emt 0:00:02]} 6. Bb3 {[%emt 0:00:17]} Bb7 {[%emt 0:00:12]} 7. d3 {[%emt 0:00:47]} Bc5 {[%emt 0:00:24]} 8. c3 {[%emt 0:02:44]} d6 {[%emt 0:05:36]} 9. Bg5 {[%emt 0:01:13]} h6 {[%emt 0:05:25]} 10. Bh4 {[%emt 0:01:40]} g5 {[%emt 0:06:03]} 11. Bg3 {[%emt 0:00:08]} Qe7 {[%emt 0:02:20]} 12. Re1 {[%emt 0:10:18]} h5 {[%emt 0:21:06]} 13. h4 {[%emt 0:16:21]} g4 {[%emt 0:00:52]} 14. Ng5 {[%emt 0:22:58]} Nd8 {[%emt 0:05:01]} 15. d4 {[%emt 0:07:52]} Bb6 {[%emt 0:00:46]} 16. f4 gxf3 {[%emt 0:16:44]} 17. Qxf3 {[%emt 0:03:51]} Ng4 {[%emt 0:07:31]} 18. Kh1 {[%emt 0:06:37]} f6 {[%emt 0:05:45]} 19. Nh3 {[%emt 0:00:12]} Ne6 {[%emt 0:01:22]} 20. Qf5 {[%emt 0:13:01]} Ng7 {[%emt 0:05:09]} 21. Qg6+ {[%emt 0:00:05]} Kd7 {[%emt 0:00:28]} 22. dxe5 {[%emt 0:01:52]} fxe5 {[%emt 0:07:30]} 23. Rf1 {[%emt 0:02:29]} Rh6 {[%emt 0:01:56]} 24. Qf7 {[%emt 0:01:22]} Rf6 {[%emt 0:00:59]} 25. Qxe7+ {[%emt 0:00:25]} Kxe7 {[%emt 0:00:02]} 26. Nd2 {[%emt 0:00:15]} Be3 {[%emt 0:00:51]} 27. Nf3 {[%emt 0:00:49]} Bxe4 {[%emt 0:00:36]} 28. Nfg5 {[%emt 0:01:02]} Bd3 {[%emt 0:00:44]} 29. Rxf6 {[%emt 0:02:54]} Nxf6 {[%emt 0:00:06]} 30. Bf2 {[%emt 0:01:51]} Nf5 {[%emt 0:01:42]} 31. Bxe3 {[%emt 0:01:23]} Nxe3 {[%emt 0:00:02]} 32. Nf2 {[%emt 0:00:09]} Bc4 {[%emt 0:00:43]} 33. Re1 {[%emt 0:00:18]} Bxb3 {[%emt 0:01:28]} 34. axb3 {[%emt 0:00:05]} Nf5 {[%emt 0:00:17]} 35. Nf3 {[%emt 0:00:24]} Ng4 {[%emt 0:01:49]} 36. Nd3 Kd7 37. Kg1 {[%emt 0:02:58]} Rg8 {[%emt 0:01:20]} 38. Nf2 {[%emt 0:01:37]} Nxf2 {[%emt 0:01:45]} 39. Kxf2 {[%emt 0:00:39]} Rg4 40. Ra1 e4 {[%emt 0:01:40]} 41. Ne1 {[%emt 0:31:11]} e3+ 42. Kg1 {[%emt 0:00:00]} Rf4 {[%emt 0:20:21]} 43. Nc2 {[%emt 0:00:00]} Rxh4 {[%emt 0:04:26]} 44. Rxa6 {[%emt 0:00:00]} Rf4 {[%emt 0:00:40]} 45. Ra1 {[%emt 0:00:00]} e2 {[%emt 0:00:26]} 46. Re1 {[%emt 0:00:00]} Ng3 {[%emt 0:00:25]} 47. Kh2 {[%emt 0:00:00]} h4 {[%emt 0:04:30]} 48. Kh3 {[%emt 0:00:00]} c5 {[%emt 0:00:34]} 49. Ra1 Re4 {[%emt 0:01:38]} 50. Ne1 {[%emt 0:00:00]} b4 {[%emt 0:00:12]} 51. Ra8 {[%emt 0:00:00]} Nf5 {[%emt 0:01:24]} 52. c4 {[%emt 0:01:53]} Rf4 {[%emt 0:00:44]} 53. Ra1 {[%emt 0:00:36]} Rf1 {[%emt 0:00:21]} 0-1